[Event "VII Totalizator Sportowy 2022"]
[Site "Bydgoszcz"]
[Date "2022.06.30"]
[Round "6.9"]
[White "Jarocka, Liwia"]
[Black "Lewtak, Damian"]
[Result "0-1"]
[ECO "B12"]
[WhiteElo "2006"]
[BlackElo "2384"]
[Annotator "TA"]
[PlyCount "98"]
[EventDate "2022.06.25"]
[EventType "swiss"]
[EventCountry "POL"]
[SourceTitle "playchess.com"]
[Source "ChessBase"]
[SourceQuality "1"]
[TimeControl "40/5400+30:1800+30"]

{[%evp 9,97,0,26,19,31,2,35,19,27,25,37,27,61,38,94,75,85,80,142,124,110,95,71,40,129,108,116,10,12,0,0,-16,-17,-14,-8,-10,-18,-19,-7,-37,-35,-32,-39,-30,-18,-45,-42,-42,-30,-63,-41,-78,-65,-111,-102,-227,-230,-282,-291,-281,-231,-229,-218,-221,-214,-216,-202,-306,-306,-306,-306,-306,-306,-306,-301,-675,-673,-582,-601,-704,-474,-29962,-708,-29959,-29953,-29987,-29983,-29993,-29994,-29999]} 1. e4 {[%emt 0:00:03]} c6 {[%emt 0:00:26]} 2. d4 {[%emt 0:00:32]} d5 {[%emt 0:00:06]} 3. e5 {[%emt 0:00:43]} c5 {[%emt 0:00:34]} 4. dxc5 {[%emt 0:00:12]} e6 {[%emt 0:00:14]} 5. a3 {[%emt 0:00:37]} Nd7 {[%emt 0:01:24]} 6. Nf3 {[%emt 0:00:29] B12: Caro-Kann: Advance Variation.} Bxc5 {[%emt 0:09:23]} 7. b4 {[%emt 0:00:15]} Bb6 {[%emt 0:00:05]} 8. Bb2 {[%emt 0:00:19] White is slightly better.} Ne7 {[%emt 0:01:49]} 9. Bd3 {[%emt 0:00:32]} Ng6 {[%emt 0:01:32]} 10. O-O {[%emt 0:01:43]} Nf4 {[%emt 0:06:51]} 11. c4 {[%emt 0:04:16] [#]} Nxd3 $146 {[%emt 0:04:13]} (11... O-O $14) ({Predecessor:} 11... g5 12. cxd5 Nxd5 13. Nc3 Nxc3 14. Bxc3 Bc7 15. Qe2 g4 16. Nd2 Nb6 17. Bb5+ Bd7 {1-0 (28) Koloczek,M (1932)-Chmielarz,M (2008) Jastrzebia Gora 2019}) 12. Qxd3 $16 {[%emt 0:00:06]} dxc4 {[%emt 0:00:04]} 13. Qxc4 {[%emt 0:00:07]} Nf8 {[%emt 0:02:09]} ({Better is} 13... O-O) 14. Nc3 {[%emt 0:01:53] Ne4 is the strong threat.} Ng6 {[%emt 0:03:08]} 15. Rfd1 {[%emt 0:08:42]} Bd7 {[%emt 0:05:29]} 16. Na4 {[%emt 0:04:22]} O-O {[%emt 0:02:32]} (16... Qc8 $14 17. Nxb6 axb6) 17. Nxb6 {[%emt 0:00:32]} axb6 {[%emt 0:00:06] [#]} 18. Rd6 {[%emt 0:10:52]} (18. b5 $1 $16) 18... Qe8 $11 {[%emt 0:07:07]} 19. h4 {[%emt 0:10:59]} h6 {[%emt 0:07:13]} 20. Re1 {[%emt 0:20:54]} Bc6 {[%emt 0:01:47]} 21. Qg4 {[%emt 0:01:33]} Bxf3 {[%emt 0:16:11]} 22. Qxf3 {[%emt 0:00:41]} Nxh4 {[%emt 0:00:25]} 23. Qxb7 {[%emt 0:00:32]} Rb8 {[%emt 0:02:38][%cal Ba8b8,Bb8c8,Bc8c7,Bc7c4][%mdl 32]} 24. Qc7 {[%emt 0:02:12]} Qb5 {[%emt 0:04:05]} 25. Qc6 {[%emt 0:15:54]} Qa6 {[%emt 0:01:04]} 26. Qe4 {[%emt 0:02:30]} Nf5 {[%emt 0:00:20]} 27. Rd3 {[%emt 0:00:32]} Rbc8 {[%emt 0:03:17]} 28. Qe2 {[%emt 0:02:35]} Rc7 {[%emt 0:03:50]} 29. Qd1 {[%emt 0:04:33]} Ne7 {[%emt 0:03:40]} 30. Rg3 {[%emt 0:01:53]} Qc8 {[%emt 0:01:15]} 31. a4 {[%emt 0:01:46]} (31. Rd3 $15) 31... Rc4 $17 {[%emt 0:01:39]} 32. Ba3 {[%emt 0:01:29] Loses the game.} (32. a5 $17) 32... Rd8 $19 {[%emt 0:00:16]} 33. Qb3 {[%emt 0:00:41]} Nf5 {[%emt 0:00:23]} 34. Rh3 {[%emt 0:00:22]} Nd4 {[%emt 0:03:01]} 35. Qb1 {[%emt 0:00:09]} Rd5 {[%emt 0:03:23] Prevents a5.} 36. a5 {[%emt 0:01:24]} bxa5 {[%emt 0:00:25]} 37. bxa5 {[%emt 0:00:02]} Rxa5 {[%emt 0:00:38]} 38. Bd6 {[%emt 0:00:33]} (38. Rd3 $142) 38... Rb5 {[%emt 0:01:58]} 39. Qd3 {[%emt 0:00:31]} Rb3 {[%emt 0:00:47]} 40. Qxb3 {[%emt 0:00:00]} Nxb3 {[%emt 0:00:00]} 41. Rxb3 {[%emt 0:00:16] And now Rb8 would win.} Qc6 {[%emt 0:01:32]} 42. Ree3 $2 {[%emt 0:01:12]} (42. Rb4) 42... Rc1+ {[%emt 0:02:20]} 43. Kh2 {[%emt 0:00:05]} Qc4 {[%emt 0:00:08] ( -> ...Qh4+)} 44. Rb4 {[%emt 0:01:35]} Qf1 {[%emt 0:00:19]} 45. Rf3 {[%emt 0:00:20] [#]} (45. Kg3 $19) 45... Qh1+ {[%emt 0:00:17]} 46. Kg3 {[%emt 0:00:05]} Rg1 {[%emt 0:00:15] Black mates.} 47. Rb8+ {[%emt 0:00:16]} Kh7 {[%emt 0:00:08]} 48. Rxf7 {[%emt 0:00:08]} Qxg2+ {[%emt 0:00:08]} 49. Kh4 {[%emt 0:00:08]} Qh1# {[%emt 0:00:07] Weighted Error Value: White=0.48/Black=0.15 (very precise)} 0-1

[Event "VII Totalizator Sportowy 2022"]
[Site "Bydgoszcz"]
[Date "2022.06.30"]
[Round "6.10"]
[White "Prokofiev, Valentyn"]
[Black "Fiedorek, Michal"]
[Result "1-0"]
[ECO "D02"]
[WhiteElo "2362"]
[BlackElo "2315"]
[Annotator "RC"]
[PlyCount "59"]
[EventDate "2022.06.25"]
[EventType "swiss"]
[EventCountry "POL"]
[SourceTitle "playchess.com"]
[Source "ChessBase"]
[SourceQuality "1"]
[TimeControl "40/5400+30:1800+30"]

1. d4 {[%emt 0:00:01]} d5 {[%emt 0:00:05]} 2. Nf3 {[%emt 0:00:07]} Nf6 {[%emt 0:00:26]} 3. c4 {[%emt 0:00:04]} e6 {[%emt 0:00:08]} 4. e3 {[%emt 0:00:03]} Be7 {[%emt 0:01:10]} 5. b3 {[%emt 0:00:05]} O-O {[%emt 0:00:24]} 6. Bd3 {[%emt 0:00:05]} b6 {[%emt 0:01:18]} 7. O-O {[%emt 0:00:07]} Bb7 {[%emt 0:00:34]} 8. Bb2 {[%emt 0:00:06]} Nbd7 {[%emt 0:00:36]} 9. Nc3 {[%emt 0:00:07]} Bd6 {[%emt 0:07:39]} 10. Rc1 {[%emt 0:05:41]} a6 {[%emt 0:00:39]} 11. Na4 {[%emt 0:00:12]} dxc4 {[%emt 0:13:25]} 12. bxc4 {[%emt 0:00:53]} c5 {[%emt 0:16:04]} 13. Qe2 {[%emt 0:11:57]} Qc7 {[%emt 0:12:39]} 14. h3 {[%emt 0:11:26]} Rfe8 {[%emt 0:10:14]} 15. dxc5 {[%emt 0:24:10]} Nxc5 {[%emt 0:08:02]} 16. Nxc5 {[%emt 0:00:35]} Bxc5 {[%emt 0:00:34]} 17. Ne5 {[%emt 0:03:38]} Rad8 {[%emt 0:01:44]} 18. Rfd1 {[%emt 0:01:28]} Ba8 {[%emt 0:01:40]} 19. Qc2 {[%emt 0:06:07]} h6 {[%emt 0:04:37]} 20. Qa4 {[%emt 0:04:51]} Qb7 {[%emt 0:02:23]} 21. Bf1 {[%emt 0:03:36]} Ne4 {[%emt 0:02:44]} 22. Rd7 {[%emt 0:02:13]} Rxd7 {[%emt 0:03:23]} 23. Qxd7 {[%emt 0:00:37]} Qxd7 {[%emt 0:06:56]} 24. Nxd7 {[%emt 0:02:09]} Rd8 {[%emt 0:01:15]} 25. Nxc5 {[%emt 0:00:41]} bxc5 {[%emt 0:01:52]} 26. f3 {[%emt 0:02:10]} Rd2 {[%emt 0:02:05]} 27. Rb1 {[%emt 0:01:55]} Ng3 {[%emt 0:00:36]} 28. Bc3 {[%emt 0:00:27]} Rc2 {[%emt 0:00:09]} 29. Rb8+ {[%emt 0:00:29]} Kh7 {[%emt 0:00:04]} 30. Bd3+ {[%emt 0:00:03]} 1-0

[Event "VII Totalizator Sportowy 2022"]
[Site "Bydgoszcz"]
[Date "2022.06.30"]
[Round "6.11"]
[White "Golubka, Petro"]
[Black "Paprocki, Jaroslaw"]
[Result "1-0"]
[ECO "E32"]
[WhiteElo "2380"]
[BlackElo "2165"]
[Annotator "TA"]
[PlyCount "85"]
[EventDate "2022.06.25"]
[EventType "swiss"]
[EventCountry "POL"]
[SourceTitle "playchess.com"]
[Source "ChessBase"]
[SourceQuality "1"]
[TimeControl "40/5400+30:1800+30"]

{[%evp 11,85,7,38,17,58,62,70,69,68,79,109,100,147,58,83,79,85,85,131,164,162,179,186,186,175,160,274,283,276,130,685,172,225,242,238,246,340,254,262,256,302,267,324,302,332,302,536,517,591,525,587,575,564,491,532,558,543,532,679,680,657,650,815,802,1107,706,889,873,842,843,2046,1664,6431,6447,5385,1497]} 1. d4 {[%emt 0:00:52]} Nf6 {[%emt 0:00:38]} 2. c4 {[%emt 0:00:05]} e6 {[%emt 0:00:14]} 3. Nc3 {[%emt 0:00:04]} Bb4 {[%emt 0:00:07]} 4. Qc2 {[%emt 0:00:04]} O-O {[%emt 0:01:21]} 5. Bg5 {[%emt 0:00:26][%cal Bc1g5,Bg5h4,Bh4g3][%mdl 32]} d5 {[%emt 0:01:12]} 6. e3 {[%emt 0:00:10]} Nbd7 {[%emt 0:02:15]} 7. Nf3 {[%emt 0:00:50] E32: Nimzo-Indian: Classical (4 Qc2): 4...0-0.} b6 {[%emt 0:03:11]} 8. cxd5 {[%emt 0:00:12]} exd5 {[%emt 0:00:19]} 9. Bb5 {[%emt 0:00:51] White is slightly better.} h6 {[%emt 0:04:37]} 10. Bh4 {[%emt 0:03:11]} g5 {[%emt 0:07:18]} 11. Bg3 {[%emt 0:01:49] [#]} Bb7 $146 {[%emt 0:02:59]} (11... Qe7 $142) ({Predecessor:} 11... Ne4 12. O-O Bxc3 13. bxc3 c5 14. Bc6 Ba6 15. Bxa8 Bxf1 16. Bxd5 Nxg3 17. fxg3 Ba6 {½-½ (48) Weirowski,D (1629)-Hamar,D (1371) Gross Groenau 2008}) 12. O-O {[%emt 0:02:42]} (12. h4 $1 $16 {[%cal Rh4g5]} g4 13. Ne5 Nxe5 14. Bxe5) 12... c6 {[%emt 0:00:46] And now ...Bxc3 would win.} 13. Bd3 {[%emt 0:00:06] 0x0.0008623dc9e4dp-1022s more active pieces. The black rooks are badly placed.} Nh5 {[%emt 0:03:58]} 14. Be5 {[%emt 0:00:46]} Nxe5 {[%emt 0:00:22]} (14... Nhf6 $142) 15. Nxe5 $16 {[%emt 0:00:26]} Bd6 {[%emt 0:09:47] [#]} 16. f4 $1 {[%emt 0:02:41]} gxf4 {[%emt 0:02:31]} 17. exf4 {[%emt 0:00:04]} c5 {[%emt 0:14:06]} 18. Nb5 {[%emt 0:06:23]} Ba6 {[%emt 0:05:05]} (18... Ng7 $16 19. Nxd6 Qxd6) 19. Nxd6 $18 {[%emt 0:02:08]} Bxd3 {[%emt 0:00:16]} 20. Nxd3 {[%emt 0:02:17] Pair of Knights!} (20. Qxd3 $18 {is the precise move to win.} Qxd6 21. Qh3) 20... c4 $2 {[%emt 0:03:14][%mdl 8192] A mistake that costs the game.} (20... Qxd6 $16 21. dxc5 bxc5) 21. Nxc4 $2 {[%emt 0:01:38]} Rc8 {[%emt 0:00:13]} (21... dxc4 {was necessary.} 22. Qxc4 Rc8) 22. Nde5 {[%emt 0:00:35]} dxc4 {[%emt 0:00:10]} 23. Rad1 {[%emt 0:00:50]} Qd5 {[%emt 0:08:04]} 24. Rf3 {[%emt 0:02:21][%cal Bf1f3,Bf3g3,Bg3g7][%mdl 32] Black must now prevent Rh3.} f5 {[%emt 0:02:38]} 25. Qf2 {[%emt 0:00:33]} Kh7 {[%emt 0:02:42]} 26. Qh4 {[%emt 0:05:18]} Nf6 {[%emt 0:01:44]} 27. Rg3 {[%emt 0:00:50]} Ng8 {[%emt 0:01:04]} 28. Qh5 {[%emt 0:00:46] Intending Qg6+ and mate.} Rf6 {[%emt 0:07:02] [#] Against Qg6+} (28... Rc7 29. Qg6+ Kh8) 29. Ng4 $1 {[%emt 0:02:00][%mdl 512] White is clearly winning.} Rfc6 {[%emt 0:03:00]} (29... Rd6 30. Ne3) 30. Ne3 {[%emt 0:00:29][%csl LRd5,LRf5]} Qd7 {[%emt 0:00:56]} 31. Nxf5 {[%emt 0:00:38] Threatens to win with d5.} Qe8 {[%emt 0:02:45]} 32. Rg7+ {[%emt 0:00:49]} Kh8 {[%emt 0:00:05]} 33. Qg4 {[%emt 0:00:30][%cal Og7h7] White threatens Rh7+! and mate.} R6c7 {[%emt 0:01:58]} 34. d5 {[%emt 0:04:50][%cal Bd4d5,Bd5d6,Bd6d7][%mdl 32] Hoping for d6.} Qf8 {[%emt 0:01:20]} 35. Rxc7 {[%emt 0:00:22]} Rxc7 {[%emt 0:00:05]} 36. d6 {[%emt 0:00:10]} Nf6 {[%emt 0:04:15]} 37. Qh3 {[%emt 0:01:22]} Rh7 {[%emt 0:00:54]} 38. Nh4 {[%emt 0:00:24][%cal Bf5h4,Bh4g6,Bg6e5][%mdl 32] Ng6+ would kill now.} Qe8 {[%emt 0:01:57] Inhibits Ng6+.} 39. Qc3 {[%emt 0:01:29][%csl LRc4,LRf6]} Rf7 {[%emt 0:02:33]} 40. d7 {[%emt 0:00:00]} Qd8 {[%emt 0:00:00]} 41. Ng6+ {[%emt 0:00:56]} Kg7 {[%emt 0:06:15]} 42. Ne5 {[%emt 0:00:03]} Re7 {[%emt 0:01:02]} 43. a4 {[%emt 0:00:35] Weighted Error Value: White=0.42/Black=0.71} (43. Rd6 $142 h5 {[#]} 44. Rxf6 $1 {[%mdl 512]} Kxf6 45. Nc6+ Kg6 46. Nxd8 Rxd7 47. f5+ Kxf5 48. Qh3+ Ke5 49. Qxd7) 1-0

[Event "VII Totalizator Sportowy 2022"]
[Site "Bydgoszcz"]
[Date "2022.06.30"]
[Round "6.12"]
[White "Zebracki, Tomasz"]
[Black "Chojnacki, Krzysztof"]
[Result "1/2-1/2"]
[ECO "A45"]
[WhiteElo "2200"]
[BlackElo "2371"]
[Annotator "TA"]
[PlyCount "45"]
[EventDate "2022.06.25"]
[EventType "swiss"]
[EventCountry "POL"]
[SourceTitle "playchess.com"]
[Source "ChessBase"]
[SourceQuality "1"]
[TimeControl "40/5400+30:1800+30"]

{[%evp 9,32,-10,-3,-6,-6,0,0,-5,12,5,10,-6,8,-8,-3,-7,-6,-10,-9,-13,0,0,10,3,6]} 1. d4 {[%emt 0:00:02]} Nf6 {[%emt 0:00:11]} 2. Bf4 {[%emt 0:00:04]} e6 {[%emt 0:01:25]} 3. e3 {[%emt 0:00:20]} d5 {[%emt 0:00:10]} 4. Nd2 {[%emt 0:02:47]} Bd6 {[%emt 0:01:16]} 5. Bg3 {[%emt 0:00:25]} b6 {[%emt 0:02:29] The position is equal.} 6. c3 {[%emt 0:00:48] D00: 1 d4 d5: Unusual lines.} O-O {[%emt 0:00:43]} 7. Ngf3 {[%emt 0:00:22]} c5 {[%emt 0:00:40]} 8. Bd3 {[%emt 0:03:49]} Ba6 {[%emt 0:01:23]} 9. Bxa6 {[%emt 0:00:16]} Nxa6 {[%emt 0:00:04]} 10. O-O {[%emt 0:00:05]} Nb8 {[%emt 0:02:52]} 11. Ne5 {[%emt 0:01:03]} Qc7 {[%emt 0:03:04]} 12. f4 {[%emt 0:01:16]} Nc6 {[%emt 0:02:36]} 13. Bh4 {[%emt 0:09:18]} Nd7 {[%emt 0:04:19]} 14. Qg4 {[%emt 0:00:19]} f5 {[%emt 0:01:36]} 15. Qe2 {[%emt 0:11:57]} Nf6 {[%emt 0:04:18]} 16. Bxf6 {[%emt 0:02:10]} Rxf6 {[#] A balanced but interesting game.  Weighted Error Value: White=0.05 (flawless) /Black=0.05 (flawless)} {Predecessor:} 17. Ndf3 $146 Rff8 18. a4 Bxe5 19. Nxe5 Nxe5 20. fxe5 c4 21. h3 Rab8 22. Ra3 a6 23. Rfa1 {½-½ (51) Hebesberger,T (2244)-Schneider Zinner,H (2381) Playchess.com INT 2020} 1/2-1/2

[Event "VII Totalizator Sportowy 2022"]
[Site "Bydgoszcz"]
[Date "2022.06.30"]
[Round "6.13"]
[White "Skurniak, Szymon"]
[Black "Kowalski, Igor"]
[Result "1/2-1/2"]
[ECO "C18"]
[WhiteElo "1960"]
[BlackElo "2370"]
[Annotator "TA"]
[PlyCount "81"]
[EventDate "2022.06.25"]
[EventType "swiss"]
[EventCountry "POL"]
[SourceTitle "playchess.com"]
[Source "ChessBase"]
[SourceQuality "1"]
[TimeControl "40/5400+30:1800+30"]

{[%evp 14,81,21,16,28,25,42,28,50,50,50,-47,-53,-44,-45,-53,-47,-52,14,15,11,26,46,41,56,46,58,60,53,64,69,66,72,75,83,76,106,102,102,104,113,110,148,113,97,81,82,85,102,102,107,107,112,69,70,56,47,0,0,0,0,0,0,0,0,0,0,0,0,0]} 1. e4 {[%emt 0:00:02]} e6 {[%emt 0:03:42]} 2. d4 {[%emt 0:00:11]} d5 {[%emt 0:00:11]} 3. Nc3 {[%emt 0:00:08]} Bb4 {[%emt 0:00:09]} 4. e5 {[%emt 0:00:11]} c5 {[%emt 0:00:16]} 5. a3 {[%emt 0:00:09]} Bxc3+ {[%emt 0:00:04]} 6. bxc3 {[%emt 0:00:07]} Ne7 {[%emt 0:00:06]} 7. Qg4 {[%emt 0:00:12]} Kf8 {[%emt 0:00:15]} 8. Qd1 {[%emt 0:07:49]} Qc7 {[%emt 0:01:12] C18: French: 3 Nc3 Bb4: Main line: 7 h4 and 7 Qg4.} 9. Nf3 {[%emt 0:05:11]} Nbc6 {[%emt 0:00:21]} 10. a4 {[%emt 0:00:05]} cxd4 {[%emt 0:00:24] White has an edge.} 11. cxd4 {[%emt 0:00:19]} Nb4 {[%emt 0:00:33] [#]} 12. c4 $146 {[%emt 0:18:15]} ({White should try} 12. Kd2 $14) ({Predecessor:} 12. Kd2 Bd7 13. Ba3 Nbc6 14. Bd6 Qd8 15. Qb1 Na5 16. Qb4 b6 17. c4 dxc4 18. Bxc4 Nxc4+ 19. Qxc4 Kg8 20. Rhc1 Nd5 21. Ke1 g6 22. Kf1 Kg7 {½-½ (22) Santos Ruiz,M (2531)-Osmak,I (2392) Benasque 2018}) 12... dxc4 $15 {[%emt 0:01:23]} 13. Ba3 {[%emt 0:01:00]} a5 {[%emt 0:16:59]} 14. Rc1 {[%emt 0:01:47]} c3 {[%emt 0:01:22]} 15. Qb3 {[%emt 0:04:48][%csl LRb4,LRc3]} Ned5 {[%emt 0:00:55]} ({Better is} 15... Bd7 $1 $15 16. Rxc3 Bxa4 $1 17. Rxc7 Bxb3 18. Rxb7 Bd5) 16. Bc4 $11 {[%emt 0:02:10] Black must now prevent Bxd5.} Kg8 {[%emt 0:04:25] And now ...Bd7 would win.} 17. Bxb4 {[%emt 0:05:38]} Nxb4 {[%emt 0:11:12]} 18. Rxc3 {[%emt 0:02:15]} Bd7 {[%emt 0:00:36]} 19. O-O {[%emt 0:06:54] Threatens to win with Ng5.} Qd8 {[%emt 0:07:37] Inhibits Ng5.} 20. d5 {[%emt 0:05:28] Prevents Bc6.} exd5 {[%emt 0:06:03]} 21. Bxd5 {[%emt 0:01:13]} Nxd5 {[%emt 0:00:14]} 22. Qxd5 {[%emt 0:00:07]} Bc6 {[%emt 0:00:21]} 23. Qc4 {[%emt 0:13:47] White is much more active.} h6 {[%emt 0:02:22]} 24. e6 {[%emt 0:00:53]} Qf6 {[%emt 0:06:13]} 25. Nd4 {[%emt 0:03:54]} fxe6 {[%emt 0:03:52]} 26. Nxc6 {[%emt 0:00:30]} bxc6 {[%emt 0:00:04]} 27. Rf3 {[%emt 0:04:09]} ({Don't take} 27. Qxc6 Kh7 $14) 27... Qe5 {[%emt 0:02:53]} 28. Qxc6 {[%emt 0:00:17]} Rd8 {[%emt 0:01:07]} 29. Re3 {[%emt 0:01:52]} Qd5 {[%emt 0:01:05]} 30. Qxe6+ {[%emt 0:02:26]} (30. Qc2 {is more complex.} h5 31. Qc3 Qd2 32. Qc4) 30... Qxe6 {[%emt 0:00:04]} 31. Rxe6 $16 {[%emt 0:00:08][%mdl 4096] Endgame KRR-KRR} Rd4 {[%emt 0:00:15] [#]} 32. Ra1 $1 {[%emt 0:00:38]} Kf7 {[%emt 0:00:20]} 33. Re5 {[%emt 0:00:13]} Rhd8 {[%emt 0:00:26][%cal Od4a4]} 34. g3 {[%emt 0:00:34]} ({But not} 34. Rf5+ $2 Ke6 35. g3 Kxf5 $19) 34... R8d5 {[%emt 0:00:16]} 35. Re3 {[%emt 0:01:13]} (35. Ree1 $14) 35... Rd1+ $1 $11 {[%emt 0:00:21] The position is equal.} 36. Rxd1 {[%emt 0:00:01]} Rxd1+ {[%emt 0:00:04]} 37. Kg2 {[%emt 0:00:05] Hoping for Re5.} Rd4 {[%emt 0:00:06]} 38. Ra3 {[%emt 0:00:43]} g5 {[%emt 0:00:22]} 39. Kf3 {[%emt 0:01:50]} Kg6 {[%emt 0:00:34]} 40. Ke3 {[%emt 0:00:00]} Rb4 {[%emt 0:00:00]} 41. h3 {[%emt 0:01:31] Weighted Error Value: White=0.11 (very precise) /Black=0.09 (flawless)} 1/2-1/2

[Event "VII Totalizator Sportowy 2022"]
[Site "Bydgoszcz"]
[Date "2022.06.30"]
[Round "6.14"]
[White "Paprocki, Antoni"]
[Black "Sernecki, Franciszek"]
[Result "1/2-1/2"]
[ECO "C04"]
[WhiteElo "1851"]
[BlackElo "2272"]
[Annotator "NA RC"]
[PlyCount "68"]
[EventDate "2022.06.25"]
[EventType "swiss"]
[EventCountry "POL"]
[SourceTitle "playchess.com"]
[Source "ChessBase"]
[SourceQuality "1"]
[TimeControl "40/5400+30:1800+30"]

1. e4 {[%emt 0:00:04]} e6 {[%emt 0:00:23]} 2. d4 {[%emt 0:00:19]} d5 {[%emt 0:00:04]} 3. Nd2 {[%emt 0:00:15]} Nc6 {[%emt 0:00:49]} 4. Ngf3 {[%emt 0:00:14]} Nf6 {[%emt 0:00:04]} 5. e5 {[%emt 0:00:10]} Nd7 {[%emt 0:00:04]} 6. Nb3 {[%emt 0:00:22]} a5 {[%emt 0:00:20]} 7. a4 {[%emt 0:00:14]} b6 {[%emt 0:00:03]} 8. Bb5 {[%emt 0:02:54]} Na7 {[%emt 0:00:27]} 9. O-O {[%emt 0:10:57]} Nxb5 {[%emt 0:05:00]} 10. axb5 {[%emt 0:00:02]} Be7 {[%emt 0:00:38]} 11. Bf4 {[%emt 0:08:56]} O-O {[%emt 0:01:29]} 12. Ne1 {[%emt 0:06:08]} (12. Nc1 $15) 12... Nb8 {[%emt 0:09:35]} 13. Qg4 {[%emt 0:02:48] [#]} Kh8 $17 {[%emt 0:04:48]} 14. Nf3 {[%emt 0:01:01]} Bd7 {[%emt 0:41:02]} 15. Rfe1 {[%emt 0:05:35]} Bxb5 {[%emt 0:01:32]} 16. Re3 {[%emt 0:06:29]} Bd7 {[%emt 0:02:08]} 17. Ng5 {[%emt 0:10:13]} Bxg5 {[%emt 0:05:42]} 18. Bxg5 {[%emt 0:00:02]} f6 {[%emt 0:00:34]} 19. Bh4 {[%emt 0:03:36]} Rg8 {[%emt 0:06:18]} 20. exf6 {[%emt 0:09:13]} gxf6 {[%emt 0:00:08]} 21. Qf4 {[%emt 0:01:16]} Rg6 {[%emt 0:00:22]} 22. Rae1 {[%emt 0:01:55]} Nc6 {[%emt 0:01:40]} 23. Rg3 {[%emt 0:06:13]} Kg7 {[%emt 0:01:39]} 24. Nd2 {[%emt 0:00:13]} Rc8 {[%emt 0:03:58]} 25. Ree3 {[%emt 0:05:09]} Qe7 {[%emt 0:02:15]} 26. c3 {[%emt 0:02:54]} e5 {[%emt 0:02:45]} 27. dxe5 {[%emt 0:01:48]} fxe5 {[%emt 0:00:16]} 28. Rxg6+ hxg6 {[%emt 0:00:01]} 29. Qg3 {[%emt 0:02:30]} Qd6 {[%emt 0:00:31]} 30. Bg5 {[%emt 0:03:08]} Rf8 {[%emt 0:04:09]} 31. Qh4 {[%emt 0:03:09]} Rh8 {[%emt 0:00:52]} 32. Qg3 {[%emt 0:00:09]} Rf8 {[%emt 0:01:36]} 33. Qh4 {[%emt 0:00:05]} Rh8 {[%emt 0:00:41]} 34. Qg3 {[%emt 0:00:06]} Rf8 {[%emt 0:01:36]} 1/2-1/2

[Event "VII Totalizator Sportowy 2022"]
[Site "Bydgoszcz"]
[Date "2022.06.30"]
[Round "6.15"]
[White "Kacprzak, Kacper"]
[Black "Perkampus, Laurin"]
[Result "1/2-1/2"]
[ECO "B12"]
[WhiteElo "2238"]
[BlackElo "2061"]
[Annotator "NA RC"]
[PlyCount "25"]
[EventDate "2022.06.25"]
[EventType "swiss"]
[EventCountry "POL"]
[SourceTitle "playchess.com"]
[Source "ChessBase"]
[SourceQuality "1"]
[TimeControl "40/5400+30:1800+30"]

1. e4 {[%emt 0:00:03]} c6 {[%emt 0:01:57]} 2. d4 {[%emt 0:00:06]} d5 {[%emt 0:00:03]} 3. e5 {[%emt 0:00:06]} Bf5 {[%emt 0:00:24]} 4. h4 {[%emt 0:04:47]} h5 {[%emt 0:00:24]} 5. Bd3 {[%emt 0:03:31]} Bxd3 {[%emt 0:01:22]} 6. Qxd3 {[%emt 0:00:06]} Qa5+ {[%emt 0:00:07]} 7. Nd2 {[%emt 0:01:13]} e6 {[%emt 0:00:36]} 8. Ngf3 {[%emt 0:00:05]} Nh6 {[%emt 0:02:28]} 9. O-O {[%emt 0:00:08]} Nf5 {[%emt 0:01:11]} 10. c4 {[%emt 0:10:21]} Be7 {[%emt 0:01:35]} 11. g3 {[%emt 0:13:29]} O-O {[%emt 0:00:14]} 12. b3 {[%emt 0:00:11]} Rd8 {[%emt 0:00:11]} 13. Bb2 {[%emt 0:09:09]} 1/2-1/2

[Event "VII Totalizator Sportowy 2022"]
[Site "Bydgoszcz"]
[Date "2022.06.30"]
[Round "6.16"]
[White "Ulasevich, Sergei"]
[Black "Syrkiewicz, Michal"]
[Result "1/2-1/2"]
[ECO "B40"]
[WhiteElo "2217"]
[BlackElo "2000"]
[Annotator "NA RC"]
[PlyCount "75"]
[EventDate "2022.06.25"]
[EventType "swiss"]
[EventCountry "POL"]
[SourceTitle "playchess.com"]
[Source "ChessBase"]
[SourceQuality "1"]
[TimeControl "40/5400+30:1800+30"]

1. e4 {[%emt 0:00:03]} c5 {[%emt 0:00:06]} 2. Nf3 {[%emt 0:00:10]} e6 {[%emt 0:00:18]} 3. g3 {[%emt 0:00:06]} d5 {[%emt 0:01:34]} 4. exd5 {[%emt 0:00:05]} exd5 {[%emt 0:00:13]} 5. d4 {[%emt 0:00:02]} Nc6 {[%emt 0:01:03]} 6. Bg2 {[%emt 0:00:07]} Bd6 {[%emt 0:01:18]} 7. O-O {[%emt 0:00:09]} Nge7 {[%emt 0:01:31]} 8. Be3 {[%emt 0:11:10]} cxd4 {[%emt 0:07:46]} 9. Nxd4 {[%emt 0:00:12]} O-O {[%emt 0:00:55]} 10. Nc3 {[%emt 0:00:50]} Bb4 {[%emt 0:05:48]} 11. Nce2 {[%emt 0:01:41]} Ba5 $16 {[%emt 0:04:17]} 12. Nb3 {[%emt 0:06:33]} Bb6 {[%emt 0:13:22]} 13. Bxb6 {[%emt 0:00:18]} Qxb6 {[%emt 0:00:20]} 14. a4 {[%emt 0:00:36]} a5 {[%emt 0:02:45]} 15. Ned4 {[%emt 0:01:06]} Rd8 {[%emt 0:03:43]} 16. Re1 {[%emt 0:05:42]} Nf5 {[%emt 0:04:58]} 17. Qe2 {[%emt 0:04:18]} Bd7 {[%emt 0:03:56]} 18. Qb5 {[%emt 0:03:29]} Qxb5 {[%emt 0:05:09]} 19. Nxb5 {[%emt 0:00:04]} Nb4 {[%emt 0:00:52]} 20. N5d4 {[%emt 0:01:37]} Nxd4 {[%emt 0:00:58]} 21. Nxd4 {[%emt 0:00:04]} Bc6 {[%emt 0:00:22]} 22. b3 {[%emt 0:04:48]} Re8 {[%emt 0:03:31]} 23. Kf1 {[%emt 0:00:15]} Kf8 {[%emt 0:00:34]} 24. Rad1 {[%emt 0:01:45]} Rad8 {[%emt 0:01:26]} 25. h4 {[%emt 0:00:16]} h6 {[%emt 0:03:44]} 26. Re2 {[%emt 0:02:57]} Rxe2 {[%emt 0:01:27]} 27. Kxe2 {[%emt 0:00:18]} Re8+ {[%emt 0:02:03]} 28. Kd2 {[%emt 0:00:20]} g6 {[%emt 0:01:14]} 29. h5 {[%emt 0:09:59]} Kg7 {[%emt 0:02:44]} 30. Bf3 {[%emt 0:01:03]} Na6 {[%emt 0:03:10]} 31. Be2 {[%emt 0:11:03]} Nc5 {[%emt 0:00:52]} 32. f3 {[%emt 0:00:07]} Ne6 {[%emt 0:03:29]} 33. Nxe6+ {[%emt 0:01:42]} Rxe6 {[%emt 0:01:44]} 34. c3 {[%emt 0:00:21]} g5 {[%emt 0:02:10]} 35. f4 {[%emt 0:06:58]} gxf4 {[%emt 0:01:37]} 36. gxf4 {[%emt 0:00:16]} Re4 {[%emt 0:00:35]} 37. Rf1 {[%emt 0:00:38]} d4 {[%emt 0:01:57]} 38. cxd4 {[%emt 0:04:21]} 1/2-1/2